Cogmind - Beta 13 @@@ ROGUE MODE // 2024.06.13 @ 23:12:35 Player: wojo Result: Destroyed self with Grenade Launcher Performance ------------- Evolutions (0) 0 Regions Visited (3) 600 Robots Destroyed (40) 200 Value Destroyed (783) 783 Prototype IDs (2) 40 Alien Tech Used (0) 0 Bonus (0) 0 TOTAL SCORE: 1623 Bonus ------- None Cogmind --------- Core Integrity 0/250 Matter 290/300 Energy 200/200 System Corruption 2% Temperature Cool (0) Movement Treading (160) Location -10/Subcaves Parts ------- > --- POWER (1) -------- Subdweller Power Source > --- PROPULSION (2) --- Light Treads Light Treads > --- UTILITY (2) ------ Small Storage Unit Structural Scanner > --- WEAPON (2) ------- Grenade Launcher > --- INVENTORY (8) ---- Subdweller Power Source Light Treads Light Treads Medium Laser Assault Rifle Assault Rifle Light Assault Rifle Peak State ------------ > --- POWER ------------ Light Ion Engine > --- PROPULSION ------- Light Treads Light Treads > --- UTILITY ---------- Small Storage Unit Structural Scanner > --- WEAPON ----------- Makeshift Shrapnel Gun Rocket Launcher > --- INVENTORY -------- Light Treads Light Treads Light Treads Light Treads Medium Laser Assault Rifle Light Assault Rifle Grenade Launcher [Rating: 11] Favorites ----------- Power Light Ion Engine Engine Light Ion Engine Propulsion Light Treads Treads Light Treads Utility Small Storage Unit Device Improved Terrain Scanner Storage Small Storage Unit Weapon Assault Rifle Energy Gun Medium Laser Ballistic Gun Assault Rifle Launcher Rocket Launcher Build | -11 -10 -10 -10 ------- Run | Yrd Mat Min Sub Slots Evolved . | . . . . Power . | . . . . Propulsion . | . . . . Utility . | . . . . Weapon . | . . . . Parts Attached 28 | 8 9 6 5 Power 4 | 1 2 . 1 Engine 4 | 1 2 . 1 Core . | . . . . Reactor . | . . . . Propulsion 6 | 2 2 1 1 Treads 6 | 2 2 1 1 Leg . | . . . . Wheel . | . . . . Hover . | . . . . Flight . | . . . . Utility 5 | 2 . 3 . Device 3 | 1 . 2 . Storage 2 | 1 . 1 . Processor . | . . . . Hackware . | . . . . Protection . | . . . . Artifact . | . . . . Weapon 13 | 3 5 2 3 Energy Gun 1 | 1 . . . Energy Cannon . | . . . . Ballistic Gun 9 | 2 4 1 2 Ballistic Cannon . | . . . . Launcher 3 | . 1 1 1 Special Weapon . | . . . . Impact Weapon . | . . . . Slashing Weapon . | . . . . Piercing Weapon . | . . . . Special Melee Weapon . | . . . . Unidentified Prototypes . | . . . . Parts Lost 5 | . 2 . 3 Power 2 | . 2 . . Propulsion 1 | . . . 1 Utility . | . . . . Weapon 2 | . . . 2 Highest Loss Streak 1 | . 1 . 1 To Critical Strikes . | . . . . Average Slot Usage (%) 99 | . 99 100 100 Engine 13 | . 13 14 14 Treads 28 | . 28 28 28 Device 14 | . 14 14 14 Storage 14 | . 14 14 14 Ballistic Gun 20 | . 26 14 18 Launcher 7 | . 1 13 9 Naked Turns . | . . . . Heaviest Build 16 | 12 14 15 16 Greatest Support 40 | 40 40 40 40 Greatest Overweight (x) . | . . . . Average Overweight (x) . | . . . . Largest Inventory Capacity 8 | 8 8 8 8 Average Capacity 7 | 6 8 8 8 Most Carried 8 | 1 8 8 8 Average Carried 6 | . 5 7 6 Final Capacity 8 | 8 8 8 8 Final Carried 8 | 1 8 8 7 Class Distribution -------------------- 100% | Mutant Dominant Class ---------------- Mutant | -10/Materials Mutant | -10/Mines Mutant | -10/Subcaves Resources | -11 -10 -10 -10 ----------- Run | Yrd Mat Min Sub Matter Collected 1158 | 229 425 236 268 Remotely . | . . . . Salvage Created 929 | 23 701 95 110 Parts 77 | 3 48 14 12 Haulers Intercepted 1 | . 1 . . Recyclers Shooed 2 | . 2 . . Parts Field Recycled . | . . . . Retrieved Matter . | . . . . Parts Self-Destructed 8 | . . . 8 Prevented . | . . . . Kills | -11 -10 -10 -10 ------- Run | Yrd Mat Min Sub Combat Hostiles Destroyed 33 | . 15 8 10 Guns 23 | . 14 3 6 AOE 10 | . 1 5 4 Classes Destroyed 9 | 1 6 1 1 Worker 1 | . . 1 . Builder 1 | . 1 . . Tunneler 1 | 1 . . . Hauler 1 | . 1 . . Recycler 1 | . 1 . . Watcher 2 | . 2 . . Swarmer 19 | . 6 6 7 Grunt 11 | . 9 2 . Subdweller 3 | . . . 3 Best Kill Streak 4 | 1 4 4 4 Combat Bots Only 4 | . 4 3 4 Max Kills in Single Turn 3 | 1 2 3 2 Gunslinging . | . . . . Exploded 1 | . 1 1 1 Melee . | . . . . Uniques/NPCs Destroyed . | . . . . Combat | -11 -10 -10 -10 -------- Run | Yrd Mat Min Sub Hostile Shots Fired 154 | . 86 15 53 Missed 45 | . 21 5 19 Damage Taken 1415 | . 796 162 457 Core 273 | . 127 26 120 Absorbed by Shields . | . . . . Regen/Repaired (Parts) 97 | . 97 . . Core Remaining (%) 100 | 100 . . . Volleys Fired 87 | 3 57 9 18 Largest 2 | 2 2 2 2 Hottest 57 | 40 50 53 57 Shots Fired 174 | 6 114 19 35 Gun 153 | 6 112 10 25 Cannon . | . . . . Launcher 21 | . 2 9 10 Special . | . . . . Kinetic 153 | 6 112 10 25 Thermal . | . . . . Explosive 21 | . 2 9 10 Electromagnetic . | . . . . Robot Hit Streak 8 | 5 8 5 8 Robot Miss Streak 4 | 1 3 2 4 Penetration Max . | . . . . Secondary Targets 1 | . 1 . . Max Gunslinging Chain 1 | . 1 . . Shots Hit Robots 109 | 5 74 8 22 Core Hits 67 | 2 34 13 18 Critical Kills . | . . . . Critical Parts Destroyed 1 | . 1 . . Critical Strikes 1 | . 1 . . Destroy 1 | . 1 . . Melee Attacks . | . . . . Impact . | . . . . Slashing . | . . . . Piercing . | . . . . Sneak Attacks . | . . . . Combat Hostiles . | . . . . Follow-up Attacks . | . . . . Damage Inflicted 2284 | 55 992 449 788 Guns 1370 | 51 934 74 311 Cannons . | . . . . Explosions 892 | . 40 375 477 Melee . | . . . . Ramming 22 | 4 18 . . Kinetic 1370 | 51 934 74 311 Thermal 38 | . . 38 . Explosive 854 | . 40 337 477 Electromagnetic . | . . . . Impact . | . . . . Slashing . | . . . . Piercing . | . . . . Highest Corruption 2 | . 2 2 2 Average Corruption 2 | . 2 2 2 Corruption Purged . | . . . . Corruption Blocked . | . . . . Effects 18 | . 1 14 3 Message Errors 3 | . . 2 1 Matter Fused 4 | . 1 2 1 Heat Flow Errors 4 | . . 3 1 Energy Discharges 2 | . . 2 . Data Loss (minor) 3 | . . 3 . Data Loss (major) 1 | . . 1 . Misfires 1 | . . 1 . Overload Shots . | . . . . Overflow Damage 18 | . . 3 15 Projectiles . | . . . . Explosions 18 | . . 3 15 Melee . | . . . . Knockbacks . | . . . . Impact . | . . . . Kinetic . | . . . . Secondary . | . . . . Self-Inflicted Damage 200 | . 64 43 93 Shots 7 | . 2 2 3 Rammed 7 | 1 6 . . Targets Rammed 7 | 1 6 . . Kicked . | . . . . Crushed . | . . . . Highest Temperature 169 | . 9 169 120 Average Temperature 65 | . 9 74 62 Received Heat Transfer 429 | . 267 51 111 Siege Activations . | . . . . Robots Corrupted . | . . . . Combat Hostiles . | . . . . Parts Fried . | . . . . Impact Corruptions . | . . . . Robots Melted . | . . . . Combat Hostiles . | . . . . Parts Melted . | . . . . Heat Transferred 50 | . . 50 . Parts Sabotaged . | . . . . Parts Stolen . | . . . . Parts Stripped . | . . . . Power Chain Reactions . | . . . . Alert | -11 -10 -10 -10 ------- Run | Yrd Mat Min Sub Peak Influence 272 | 5 191 272 . Initial 63 | . 3 63 . Average 107 | 2 93 138 . Maximum Alert Level 1 | . . 1 . Low Security (%) 98 | 100 100 96 . Level 1 1 | . . 3 . Level 2 . | . . . . Level 3 . | . . . . Level 4 . | . . . . Level 5 . | . . . . High Security . | . . . . Max Security . | . . . . Squads Dispatched 3 | . 3 . . Investigation 2 | . 2 . . Extermination . | . . . . Reinforcement 1 | . 1 . . Assault . | . . . . Garrison . | . . . . Intercept . | . . . . Searches Triggered . | . . . . Construction Impeded . | . . . . Haulers Reinforced . | . . . . Active Scanning Responses . | . . . . Cargo Convoy Interrupts . | . . . . Stealth | -11 -10 -10 -10 --------- Run | Yrd Mat Min Sub Distress Signals . | . . . . Communications Jammed . | . . . . Distress Signals . | . . . . Times Spotted 45 | . 23 6 16 Peak Tracking Total 6 | . 4 3 6 Tactical Retreats 5 | . 2 . 3 Traps | -11 -10 -10 -10 ------- Run | Yrd Mat Min Sub Traps Triggered 3 | . 3 . . Indirectly . | . . . . Trap Hack Attempts . | . . . . Triggered . | . . . . Disarmed . | . . . . Reprogrammed . | . . . . Reused . | . . . . Traps Extracted . | . . . . Installed . | . . . . Triggered . | . . . . Machines | -11 -10 -10 -10 ---------- Run | Yrd Mat Min Sub Machines Disabled 5 | . . 2 3 Max in Single Turn 3 | . . 1 3 Machines Repaired . | . . . . Machines Dismantled . | . . . . Machines Sabotaged . | . . . . Overloaded Fab Kills . | . . . . Hacking | -11 -10 -10 -10 --------- Run | Yrd Mat Min Sub Machines Accessed 6 | . 6 . . Terminals 4 | . 4 . . Fabricators . | . . . . Repair Stations 1 | . 1 . . Recycling Units 1 | . 1 . . Scanalyzers . | . . . . Garrison Access . | . . . . Total Hacks 17 | . 17 . . Successful 7 | . 7 . . Failed 10 | . 10 . . Catastrophic 2 | . 2 . . Database Lockouts . | . . . . Manual . | . . . . Terminals 14 | . 14 . . Fabricators . | . . . . Repair Stations 2 | . 2 . . Recycling Units 1 | . 1 . . Scanalyzers . | . . . . Garrison Access . | . . . . Terminal Hacks 4 | . 4 . . Robot Analysis 1 | . 1 . . Prototype ID Bank 1 | . 1 . . Hauler Manifests 1 | . 1 . . Zone Layout 1 | . 1 . . Fabricator Hacks . | . . . . Repair Station Hacks 2 | . 2 . . Scan Component 1 | . 1 . . Repair 1 | . 1 . . Recycling Unit Hacks 1 | . 1 . . Report Inventory 1 | . 1 . . Scanalyzer . | . . . . Garrison Access Hacks . | . . . . Unauthorized Hacks . | . . . . Terminals . | . . . . Fabricators . | . . . . Repair Stations . | . . . . Recycling Units . | . . . . Scanalyzers . | . . . . Garrison Access . | . . . . Data Cores Recovered . | . . . . Used . | . . . . Hacking Detections 4 | . 4 . . Full Trace Events 2 | . 2 . . Feedback Events . | . . . . Feedback Blocked . | . . . . Robot Schematics Acquired . | . . . . Robots Built . | . . . . Authchips . | . . . . Time . | . . . . Total Robot Build Rating . | . . . . Part Schematics Acquired . | . . . . Parts Built . | . . . . Authchips . | . . . . Time . | . . . . Total Part Build Rating . | . . . . Parts Repaired 1 | . 1 . . Time 26 | . 26 . . Parts Recycled . | . . . . Recycled Matter . | . . . . Retrieved Matter . | . . . . Retrieved Components . | . . . . Parts Scanalyzed . | . . . . Part Schematics Acquired . | . . . . Parts Damaged . | . . . . Bothacking | -11 -10 -10 -10 ------------ Run | Yrd Mat Min Sub Used RIF Installer . | . . . . Robots Hacked . | . . . . Non-combat . | . . . . Combat . | . . . . Robot Hacks Applied . | . . . . Relay Couplers Released . | . . . . Fabnet Peak Effective % . | . . . . Robots Rewired . | . . . . Allies Hacked . | . . . . Hacks Repelled . | . . . . Allies | -11 -10 -10 -10 -------- Run | Yrd Mat Min Sub Total Allies . | . . . . Largest Group . | . . . . Highest-Rated Group . | . . . . Highest-Rated Ally . | . . . . Total Orders . | . . . . Ally Attacks . | . . . . Total Damage . | . . . . Kills . | . . . . Allies Corrupted . | . . . . Allies Melted . | . . . . Intel | -11 -10 -10 -10 ------- Run | Yrd Mat Min Sub Robot Analysis Total 1 | . 1 . . Derelict Logs Recovered 2 | . . 1 1 Drone Launches . | . . . . Drone Recoveries . | . . . . Exploration | -11 -10 -10 -10 ------------- Run | Yrd Mat Min Sub Turns Passed 2664 | 89 1091 831 653 Spaces Moved 1402 | 44 493 494 371 Core 3 | 3 . . . Treads 1399 | 41 493 494 371 Legs . | . . . . Wheels . | . . . . Hover . | . . . . Flight . | . . . . Fastest Speed 50 | 50 160 160 160 Average Speed 159 | 152 160 160 160 Slowest Speed 160 | 160 160 160 160 Overloaded Moves . | . . . . Propulsion Burnouts . | . . . . Robots Hopped . | . . . . Cave-ins Triggered . | . . . . Exploration Rate (%) 49 | 5 66 98 30 Regions Visited 3 Branch Regions 2 Pre-discovered Areas 1 | . . 1 . Known Exits Taken . | . . . . Unknown Exits Taken 3 | 1 1 1 . Scrap Searched 1 | . . 1 . Spaces Dug 9 | . 9 . . Terrain Destroyed 170 | . 11 98 61 Melee . | . . . . Projectile . | . . . . AOE 170 | . 11 98 61 Terrain Rammed . | . . . . Walls Destroyed . | . . . . Machines Disabled . | . . . . Actions | -11 -10 -10 -10 --------- Run | Yrd Mat Min Sub Total 1648 | 57 676 519 396 Wait 103 | . 103 . . Move 1399 | 43 492 493 371 Hop . | . . . . Pick Up 13 | 1 7 4 1 Fast Attach 12 | 7 2 3 . Attach 5 | 1 1 1 2 Detach 1 | 1 . . . Swap 11 | . 6 2 3 Drop 10 | . 2 7 1 Fire 87 | 3 57 9 18 Melee . | . . . . Ram . | . . . . Kick . | . . . . Crush 7 | 1 6 . . Escape Stasis . | . . . . Rewire . | . . . . Trap . | . . . . Miscellaneous . | . . . . Route ------- -11/Scrapyard -10/Materials (discovered 2 exits: [*Mat] / [*Min]) -10/Mines (discovered 3 exits: [*Mat x2] / [*Sub]) -10/Subcaves History --------- Turn | Location | Event 60 | -11/Scrapyard | Discovered new exit (range 16) 90 | -11/Scrapyard | Entered Materials 281 | -10/Materials | Discovered new exit (range 16) 308 | -10/Materials | Build established: Mutant 636 | -10/Materials | Discovered new exit (range 14) 999 | -10/Materials | Core integrity fell below 50% 1131 | -10/Materials | Repaired Assault Rifle 1181 | -10/Materials | Entered Mines 1188 | -10/Mines | Received a Rocket Launcher from a helpful Derelict 1198 | -10/Mines | Discovered new exit (range 13) 1201 | -10/Mines | Met a Derelict bent on vengeance 1218 | -10/Mines | Learned location of Storage (-7) 1542 | -10/Mines | Discovered new exit (range 15) 1775 | -10/Mines | Learned location of 1 exit from Materials 1962 | -10/Mines | A weapon hastily lodged in a ceiling crevice suddenly fell to the ground 1999 | -10/Mines | Discovered new exit (range 6) 2012 | -10/Mines | Entered Subcaves 2189 | -10/Subcaves | Core integrity fell below 20% 2514 | -10/Subcaves | Learned 2 Materials zone layouts 2665 | -10/Subcaves | Destroyed self with Grenade Launcher Last Messages --------------- 02542_ Acquired 19 matter. 02547_ Subatomizers dissect the Sub. Power Source. 02609_ Acquired 8 matter. 02616_ Acquired 15 matter. 02619_ Acquired 12 matter. 02625_ Acquired 14 matter. 02626_ Subatomizers dissect the Sub. Machine Gun. 02627_ Acquired 12 matter. 02634_ System corrupted: Matter fused (-6). 02636_ Subatomizers dissect the Sub. Machine Gun. 02640_ Acquired 6 matter. 02648_ Dropped Lgt. Ion Engine. 02648_ Acquired 10 matter. 02661_ Subatomizers dissect the Ion Engine. 02662_ Acquired Sub. Power Source. 02664_ Mak. Shrapnel Gun destroyed. 02664_ Critical hit (Burn: +37). Map ----- +----------------------------------------------------+ | ?????????????????????????????????????????????????? | | ?????????????????????????????????????????????????? | | ?????????????????????????????????????????????????? | | ?????????????????????????????????????????????????? | | ?????????????????????????????????????????????????? | | ?????????????????????????????????????????????????? | | ?????????????????????????????????????????????????? | | ?????????????????????????????????????????????????? | | ?????????????????????????????????????????????????? | | ?????????????????????????????????????????????????? | | ?????????????????????????????????????????????????? | | ?????????????????????????????????????????????????? | | ??????????????###????????????????????????????????? | | ??????????????###????????????????????????????????? | | ?????????????? ???### ???####??????????????????? | | ??????????????? #### ??? ####?????????????????? | | ??????????????? #### ??? #######?????????????? | | ??????????????? # ???? #######????????????? | | ???????????????## ???? ###????????????? | | ?????????????????? Y #### ##????????????? | | ??????????????????? #### ##????????????? | | ???????????????????? ###???????????? | | ????????????????????## * &* ##???????????? | | ??????####??????????## %! [%&## #???????????? | | ??????####????????#### = &&!### ############# | | ???? ! ? ###??#### @% ## ############# | | ??? &% ####### &%& ## ## ## # # ## | | ??? =] #### ## &! ##### ## | | ?????? # &&*% ### ### & * # # | | ?????### &%[ % "## #### = | | ?????## # ## ### ##### "## # | | ????#### # ######## ### ######" ## ## | | ????### ####### ####### #####" ### ###### | | ????## ## ## ## #### ### "####### ## | | ???? ## ## # ####### "" | | ???????## ## ###?## " | | ???????### ### ## ###?### "## | | ???????### ?##### ## ## ######"### | | ????????# ???######## ## #######"### | | ???????????????####### #### #### ### ### | | ??????????????????### ########## ## ### | | ?????????????????#### ##### ###? | | ?????????????????### ## ###?? | | ?????????????????## #####?? | | ?????????????????### ### ## ## ## #####??? | | ?????????????????############################????? | | ??????????????????##########################?????? | | ?????????????????????????????????????????????????? | | ?????????????????????????????????????????????????? | | ?????????????????????????????????????????????????? | +----------------------------------------------------+ Best States ------------- Heat Dissipation 25 Energy Generation 15 Energy Capacity 200 Matter Stores 300 Matter Capacity 300 Sight Range 16 Terrain Scan Range 16 Terrain Scan Density 10 Evasion (%) 40 Recoil Reduction 2 Item Schematics ----------------- None Robot Schematics ------------------ None Fabricated ------------ Nothing Alien Tech Used ----------------- None Achievements -------------- None Challenges ------------ None Game ------ Seed ScrapAccelerationMegatreads Manual? 0 Play Time 00:19:11 Cumulative 31.5 hours Start 2024.06.13 @ 22:54:38 End 2024.06.13 @ 23:12:35 Sessions 1 Manual Loads 0 Difficulty Rogue Special Mode None Game No. 53 Rogue 53 Adventurer 0 Explorer 0 Win Type - Total 0 Types 0/0/0/0/0/0/0/0/0 Lore% 22 Gallery% 28 Achievement% 21 Wizard Run 0 Options --------- Layout 1 ASCII 0 Keyboard 0 Movement Arrows Keybinds 0 Fullscreen 1 Font 16/SmallcapsGlow Map View 50x40 Zoom Use 0% Tactical HUD 1 Map Filters NONE Filters NONE Steam SD RUN: b07707aa-87e5-4370-b851-45b71b148f1e